fUSD/lending_fUSD_20260610
["ID","MTS","AMOUNT","RATE_DAILY","PERIOD"]
[424700489,1781063459000,-151.0,0.00015833,2]
[424700479,1781063459000,-282.53942145,0.00015833,2]
[424700462,1781063459000,-332.43807807,0.00015449,2]
[424700435,1781063459000,-151.0,0.00015,2]
[424700461,1781063459000,-151.0,0.00015417,2]
[424700460,1781063459000,-853.94608,0.000154,2]
[424700438,1781063459000,-160.61,0.00015007,2]
[424700436,1781063459000,-151.0,0.00015,2]
[424700437,1781063459000,-151.0,0.00015,2]
[424700440,1781063459000,-488.64,0.00015068,2]
[424700442,1781063459000,-556.403067,0.00015068,2]
[424700443,1781063459000,-556.403067,0.00015068,2]
[424700444,1781063459000,-556.403067,0.00015068,2]
[424700445,1781063459000,-556.403067,0.00015068,2]
[424700450,1781063459000,-225.24,0.00015081,2]
[424700449,1781063459000,-1535.16,0.00015079,2]
[424700447,1781063459000,-556.403067,0.00015068,2]
[424700439,1781063459000,-350.0,0.0001501,2]
[424700448,1781063459000,-556.403067,0.00015068,2]
[424700451,1781063459000,-251.46184804,0.00015105,10]
[424700459,1781063459000,-4923.09472156,0.000154,2]
[424700463,1781063459000,-675.72,0.00015474,2]
[424700458,1781063459000,-853.94608,0.000153,2]
[424700455,1781063459000,-350.0,0.00015218,2]
[424700457,1781063459000,-4923.09472156,0.000153,2]
[424700456,1781063459000,-1517.64,0.000153,2]
[424700453,1781063459000,-12942.29803657,0.00015174,2]
[424700452,1781063459000,-350.0,0.00015146,2]
[424700446,1781063459000,-556.403067,0.00015068,2]
[424700488,1781063459000,-151.0,0.00015833,2]
[424700454,1781063459000,-500.0,0.00015205,2]
[424700503,1781063460000,-300.0,0.00015942,2]
[424700499,1781063460000,-300.0,0.00015942,2]
[424700500,1781063460000,-300.0,0.00015942,2]
[424700507,1781063460000,-2000.0,0.00015943,2]
[424700504,1781063460000,-300.0,0.00015942,2]
[424700501,1781063460000,-300.0,0.00015942,2]
[424700497,1781063460000,-697.11885021,0.00015942,2]
[424700494,1781063460000,-4923.09472156,0.000159,2]
[424700491,1781063460000,-1500.0,0.0001584,2]
[424700496,1781063460000,-300.0,0.00015942,2]
[424700493,1781063460000,-300.0,0.00015862,2]
[424700495,1781063460000,-853.94608,0.000159,2]
[424700490,1781063460000,-151.0,0.00015833,2]
[424700502,1781063460000,-666.0,0.00015942,2]
[424700498,1781063460000,-300.0,0.00015942,2]
[424700505,1781063460000,-2000.0,0.00015943,2]
[424700492,1781063460000,-300.0,0.00015862,2]
[424700509,1781063460000,-2000.0,0.00015943,2]
[424700506,1781063460000,-2000.0,0.00015943,2]
[424700528,1781063460000,-2000.0,0.00015943,2]
[424700529,1781063460000,-2000.0,0.00015943,2]
[424700521,1781063460000,-2000.0,0.00015943,2]
[424700520,1781063460000,-2000.0,0.00015943,2]
[424700513,1781063460000,-2000.0,0.00015943,2]
[424700516,1781063460000,-2000.0,0.00015943,2]
[424700519,1781063460000,-2000.0,0.00015943,2]
[424700514,1781063460000,-2000.0,0.00015943,2]
[424700510,1781063460000,-2000.0,0.00015943,2]
[424700511,1781063460000,-2000.0,0.00015943,2]
[424700512,1781063460000,-2000.0,0.00015943,2]
[424700517,1781063460000,-2000.0,0.00015943,2]
[424700518,1781063460000,-2000.0,0.00015943,2]
[424700515,1781063460000,-2000.0,0.00015943,2]
[424700508,1781063460000,-2000.0,0.00015943,2]
[424700635,1781063461000,-1000.0,0.00015943,2]
[424700634,1781063461000,-1000.0,0.00015943,2]
[424700636,1781063461000,-1000.0,0.00015943,2]
[424700627,1781063461000,-1000.0,0.00015943,2]
[424700629,1781063461000,-1000.0,0.00015943,2]
[424700631,1781063461000,-1000.0,0.00015943,2]
[424700633,1781063461000,-1000.0,0.00015943,2]
[424700628,1781063461000,-1000.0,0.00015943,2]
[424700630,1781063461000,-1000.0,0.00015943,2]
[424700632,1781063461000,-1000.0,0.00015943,2]
[424700641,1781063461000,-1000.0,0.00015943,2]
[424700645,1781063461000,-1000.0,0.00015943,2]
[424700642,1781063461000,-1000.0,0.00015943,2]
[424700638,1781063461000,-1000.0,0.00015943,2]
[424700644,1781063461000,-1000.0,0.00015943,2]
[424700640,1781063461000,-1000.0,0.00015943,2]
[424700637,1781063461000,-933.51,0.00015943,2]
[424700624,1781063461000,-1000.0,0.00015943,2]
[424700643,1781063461000,-1000.0,0.00015943,2]
[424700656,1781063461000,-162.46,0.00016,2]
[424700653,1781063461000,-162.46,0.00016,2]
[424700646,1781063461000,-1000.0,0.00015943,2]
[424700639,1781063461000,-1000.0,0.00015943,2]
[424700621,1781063461000,-1000.0,0.00015943,2]
[424700617,1781063461000,-840.44,0.00015943,2]
[424700626,1781063461000,-1000.0,0.00015943,2]
[424700652,1781063461000,-162.46,0.00016,2]
[424700599,1781063461000,-1000.0,0.00015943,2]
[424700600,1781063461000,-1000.0,0.00015943,2]
[424700603,1781063461000,-1000.0,0.00015943,2]
[424700605,1781063461000,-1000.0,0.00015943,2]
[424700604,1781063461000,-1000.0,0.00015943,2]
[424700601,1781063461000,-1000.0,0.00015943,2]
[424700606,1781063461000,-1000.0,0.00015943,2]
[424700612,1781063461000,-1000.0,0.00015943,2]
[424700607,1781063461000,-1000.0,0.00015943,2]
[424700611,1781063461000,-1000.0,0.00015943,2]
[424700610,1781063461000,-1000.0,0.00015943,2]
[424700614,1781063461000,-1000.0,0.00015943,2]
[424700615,1781063461000,-1000.0,0.00015943,2]
[424700613,1781063461000,-1000.0,0.00015943,2]
[424700608,1781063461000,-1000.0,0.00015943,2]
[424700609,1781063461000,-1000.0,0.00015943,2]
[424700622,1781063461000,-1000.0,0.00015943,2]
[424700623,1781063461000,-1000.0,0.00015943,2]
[424700616,1781063461000,-1000.0,0.00015943,2]
[424700618,1781063461000,-1000.0,0.00015943,2]
[424700619,1781063461000,-1000.0,0.00015943,2]
[424700620,1781063461000,-1000.0,0.00015943,2]
[424700625,1781063461000,-1000.0,0.00015943,2]
[424700651,1781063461000,-162.46,0.00016,2]
[424700602,1781063461000,-1000.0,0.00015943,2]
[424700649,1781063461000,-960.11,0.00015943,2]
[424700682,1781063461000,-350.0,0.00016308,2]
[424700681,1781063461000,-350.0,0.00016308,2]
[424700683,1781063461000,-159.75607785,0.00016333,2]
[424700687,1781063461000,-1555.5,0.00016388,2]
[424700685,1781063461000,-200.0,0.0001634,2]
[424700684,1781063461000,-287.56094012,0.00016333,2]
[424700686,1781063461000,-202.85910125,0.00016348,2]
[424700690,1781063461000,-350.0,0.00016421,2]
[424700688,1781063461000,-4923.09472156,0.000164,2]
[424700691,1781063461000,-1610.6,0.00016438,2]
[424700689,1781063461000,-152.0,0.00016417,2]
[424700692,1781063461000,-259.0,0.00016438,2]
[424700694,1781063461000,-150.0,0.00016438,2]
[424700696,1781063461000,-150.0,0.00016438,2]
[424700697,1781063461000,-150.0,0.00016438,2]
[424700695,1781063461000,-150.0,0.00016438,2]
[424700698,1781063461000,-150.0,0.00016438,2]
[424700700,1781063461000,-150.0,0.00016438,2]
[424700702,1781063461000,-208.0,0.00016438,2]
[424700699,1781063461000,-150.0,0.00016438,2]
[424700693,1781063461000,-150.0,0.00016438,2]
[424700703,1781063461000,-488.64,0.00016438,2]
[424700701,1781063461000,-150.0,0.00016438,2]
[424700673,1781063461000,-3053.8,0.00016116,2]
[424700672,1781063461000,-9999.99,0.00016116,2]
[424700650,1781063461000,-779.4641807,0.00016,2]
[424700675,1781063461000,-5441.47,0.00016116,2]
[424700648,1781063461000,-1000.0,0.00015943,2]
[424700654,1781063461000,-162.46,0.00016,2]
[424700655,1781063461000,-162.46,0.00016,2]
[424700647,1781063461000,-1000.0,0.00015943,2]
[424700658,1781063461000,-162.46,0.00016,2]
[424700659,1781063461000,-300.0,0.00016,2]
[424700677,1781063461000,-1000.0,0.000162,2]
[424700657,1781063461000,-162.46,0.00016,2]
[424700662,1781063461000,-166.53,0.00016086,2]
[424700661,1781063461000,-151.0,0.00016083,2]
[424700664,1781063461000,-4378.76695744,0.0001611,15]
[424700665,1781063461000,-300.0,0.00016115,2]
[424700668,1781063461000,-2136.11,0.00016116,2]
[424700663,1781063461000,-201.34798392,0.000161,7]
[424700667,1781063461000,-150.99,0.00016116,2]
[424700666,1781063461000,-300.0,0.00016115,2]
[424700674,1781063461000,-3572.03,0.00016116,2]
[424700679,1781063461000,-210.29162398,0.00016269,2]
[424700680,1781063461000,-171.5,0.000163,5]
[424700669,1781063461000,-8284.51,0.00016116,2]
[424700670,1781063461000,-1534.04,0.00016116,2]
[424700676,1781063461000,-4923.09472156,0.000162,2]
[424700671,1781063461000,-299.99,0.00016116,4]
[424700678,1781063461000,-350.0,0.00016257,2]
[424700660,1781063461000,-4923.09472156,0.00016,2]
[424700740,1781063462000,-151.0,0.00016438,2]
[424700743,1781063462000,-151.0,0.00016438,2]
[424700735,1781063462000,-151.0,0.00016438,2]
[424700738,1781063462000,-151.0,0.00016438,2]
[424700733,1781063462000,-151.0,0.00016438,2]
[424700744,1781063462000,-151.0,0.00016438,2]
[424700745,1781063462000,-273.641047,0.00016438,2]
[424700736,1781063462000,-151.0,0.00016438,2]
[424700729,1781063462000,-151.0,0.00016438,2]
[424700739,1781063462000,-151.0,0.00016438,2]
[424700741,1781063462000,-151.0,0.00016438,2]
[424700756,1781063462000,-225.24,0.00016756,2]
[424700742,1781063462000,-151.0,0.00016438,2]
[424700747,1781063462000,-688.76,0.000165,2]
[424700757,1781063462000,-736.0,0.00016813,2]
[424700750,1781063462000,-151.78411998,0.00016673,2]
[424700748,1781063462000,-4923.09472156,0.000165,2]
[424700749,1781063462000,-2000.0,0.00016649,2]
[424700746,1781063462000,-1000.0,0.000165,2]
[424700751,1781063462000,-3000.0,0.00016682,2]
[424700755,1781063462000,-150.0,0.00016746,2]
[424700752,1781063462000,-569.07405869,0.00016682,2]
[424700753,1781063462000,-4923.09472156,0.000167,2]
[424700730,1781063462000,-151.0,0.00016438,2]
[424700737,1781063462000,-151.0,0.00016438,2]
[424700731,1781063462000,-151.0,0.00016438,2]
[424700714,1781063462000,-2680.313307,0.00016438,2]
[424700732,1781063462000,-151.0,0.00016438,2]
[424700704,1781063462000,-157.173489,0.00016438,2]
[424700754,1781063462000,-168.38,0.00016712,2]
[424700706,1781063462000,-151.0,0.00016438,2]
[424700707,1781063462000,-862.799608,0.00016438,2]
[424700708,1781063462000,-862.799608,0.00016438,2]
[424700709,1781063462000,-862.799608,0.00016438,2]
[424700710,1781063462000,-862.799608,0.00016438,2]
[424700711,1781063462000,-2680.313307,0.00016438,2]
[424700713,1781063462000,-2680.313307,0.00016438,2]
[424700719,1781063462000,-151.0,0.00016438,2]
[424700720,1781063462000,-151.0,0.00016438,2]
[424700725,1781063462000,-151.0,0.00016438,2]
[424700721,1781063462000,-151.0,0.00016438,2]
[424700722,1781063462000,-151.0,0.00016438,2]
[424700715,1781063462000,-2680.313307,0.00016438,2]
[424700716,1781063462000,-2680.313307,0.00016438,2]
[424700717,1781063462000,-2680.313307,0.00016438,2]
[424700718,1781063462000,-2680.313307,0.00016438,2]
[424700723,1781063462000,-151.0,0.00016438,2]
[424700724,1781063462000,-151.0,0.00016438,2]
[424700726,1781063462000,-151.0,0.00016438,2]
[424700727,1781063462000,-151.0,0.00016438,2]
[424700734,1781063462000,-151.0,0.00016438,2]
[424700728,1781063462000,-151.0,0.00016438,2]
[424700712,1781063462000,-2680.313307,0.00016438,2]
[424700705,1781063462000,-151.0,0.00016438,2]
[424700760,1781063462000,-1613.0535,0.00016936,2]
[424700759,1781063462000,-204.43715407,0.000169,30]
[424700792,1781063462000,-1209.59708375,0.00018,2]
[424700795,1781063462000,-9934.10276638,0.00018,2]
[424700793,1781063462000,-350.0,0.00018,2]
[424700794,1781063462000,-3737.18277314,0.00018,2]
[424700796,1781063462000,-1905.11065096,0.00018,2]
[424700797,1781063462000,-170.64746589,0.00018,2]
[424700798,1781063462000,-1734.62772924,0.00018032,2]
[424700799,1781063462000,-632.0,0.0001805,2]
[424700800,1781063462000,-1805.04828389,0.000181,2]
[424700790,1781063462000,-300.0,0.00017999,2]
[424700791,1781063462000,-103175.58983175,0.00018,2]
[424700789,1781063462000,-361.76113529,0.00017999,2]
[424700801,1781063462000,-3562.865,0.000181,2]
[424700804,1781063462000,-1276.177,0.000181,2]
[424700805,1781063462000,-401.0,0.000181,2]
[424700806,1781063462000,-950.942,0.000181,2]
[424700811,1781063462000,-1905.11065096,0.000182,2]
[424700803,1781063462000,-165.425,0.000181,2]
[424700808,1781063462000,-688.76,0.000182,2]
[424700810,1781063462000,-9934.10276638,0.000182,2]
[424700809,1781063462000,-3737.18277314,0.000182,2]
[424700812,1781063462000,-1252.0,0.00018225,2]
[424700758,1781063462000,-161.33847176,0.00016853,2]
[424700813,1781063462000,-11527.0,0.00018233,5]
[424700802,1781063462000,-1358.0,0.000181,2]
[424700786,1781063462000,-300.0,0.00017999,2]
[424700807,1781063462000,-419.787,0.000181,2]
[424700787,1781063462000,-300.0,0.00017999,2]
[424700788,1781063462000,-666.0,0.00017999,2]
[424700761,1781063462000,-1163.20272868,0.00017,2]
[424700766,1781063462000,-289.84973986,0.00017118,2]
[424700764,1781063462000,-309.0,0.00017,2]
[424700768,1781063462000,-2050.93777206,0.00017175,2]
[424700765,1781063462000,-675.72,0.00017021,2]
[424700767,1781063462000,-501.04422962,0.00017161,2]
[424700762,1781063462000,-316.0,0.00017,2]
[424700770,1781063462000,-1672.7364795,0.00017484,2]
[424700771,1781063462000,-794.46274024,0.000177,2]
[424700769,1781063462000,-2000.0,0.000172,2]
[424700772,1781063462000,-403.0,0.000177,5]
[424700763,1781063462000,-170.0,0.00017,9]
[424700774,1781063462000,-169.73,0.00017702,2]
[424700773,1781063462000,-169.73,0.00017702,2]
[424700785,1781063462000,-300.0,0.00017999,2]
[424700783,1781063462000,-300.0,0.00017999,2]
[424700780,1781063462000,-199.5,0.00017843,2]
[424700784,1781063462000,-300.0,0.00017999,2]
[424700782,1781063462000,-1241.57355726,0.0001789,2]
[424700779,1781063462000,-1125.0,0.0001784,2]
[424700778,1781063462000,-260.502183,0.00017808,2]
[424700777,1781063462000,-2000.0,0.000178,2]
[424700775,1781063462000,-169.73,0.00017702,2]
[424700776,1781063462000,-169.73,0.00017702,2]
[424700781,1781063462000,-156.97,0.00017873,2]
[424700852,1781063463000,-1000.0,0.00018958,2]
[424700841,1781063463000,-1000.0,0.00018958,2]
[424700842,1781063463000,-1000.0,0.00018958,2]
[424700846,1781063463000,-1000.0,0.00018958,2]
[424700844,1781063463000,-1000.0,0.00018958,2]
[424700845,1781063463000,-1000.0,0.00018958,2]
[424700847,1781063463000,-1000.0,0.00018958,2]
[424700851,1781063463000,-1000.0,0.00018958,2]
[424700850,1781063463000,-1000.0,0.00018958,2]
[424700839,1781063463000,-300.0,0.00018957,2]
[424700856,1781063463000,-1000.0,0.00018958,2]
[424700853,1781063463000,-1000.0,0.00018958,2]
[424700857,1781063463000,-1000.0,0.00018958,2]
[424700849,1781063463000,-1000.0,0.00018958,2]
[424700855,1781063463000,-1000.0,0.00018958,2]
[424700854,1781063463000,-1000.0,0.00018958,2]
[424700858,1781063463000,-1000.0,0.00018958,2]
[424700863,1781063463000,-1000.0,0.00018958,2]
[424700862,1781063463000,-1000.0,0.00018958,2]
[424700860,1781063463000,-1000.0,0.00018958,2]
[424700865,1781063463000,-1000.0,0.00018958,2]
[424700840,1781063463000,-1000.0,0.00018958,2]
[424700848,1781063463000,-1000.0,0.00018958,2]
[424700843,1781063463000,-1000.0,0.00018958,2]
[424700825,1781063463000,-675.72,0.00018569,2]
[424700838,1781063463000,-671.43968731,0.00018957,2]
[424700859,1781063463000,-1000.0,0.00018958,2]
[424700824,1781063463000,-1905.11065096,0.000185,2]
[424700814,1781063463000,-2000.0,0.00018314,2]
[424700815,1781063463000,-2138.08,0.00018356,2]
[424700818,1781063463000,-9934.10276638,0.000184,2]
[424700817,1781063463000,-3737.18277314,0.000184,2]
[424700816,1781063463000,-2000.0,0.000184,2]
[424700819,1781063463000,-1905.11065096,0.000184,2]
[424700820,1781063463000,-1610.6,0.0001841,2]
[424700823,1781063463000,-9934.10276638,0.000185,2]
[424700821,1781063463000,-225.24,0.00018432,2]
[424700822,1781063463000,-3737.18277314,0.000185,2]
[424700828,1781063463000,-9934.10276638,0.000187,2]
[424700827,1781063463000,-3737.18277314,0.000187,2]
[424700829,1781063463000,-1905.11065096,0.000187,2]
[424700830,1781063463000,-1125.0,0.00018779,2]
[424700826,1781063463000,-1798.80895522,0.0001858,2]
[424700834,1781063463000,-307.98851565,0.00018939,2]
[424700832,1781063463000,-9934.10276638,0.000189,2]
[424700833,1781063463000,-1905.11065096,0.000189,2]
[424700835,1781063463000,-300.0,0.00018957,2]
[424700836,1781063463000,-300.0,0.00018957,2]
[424700831,1781063463000,-3737.18277314,0.000189,2]
[424700837,1781063463000,-300.0,0.00018957,2]
[424700866,1781063463000,-1000.0,0.00018958,2]
[424700867,1781063463000,-1000.0,0.00018958,2]
[424700861,1781063463000,-1000.0,0.00018958,2]
[424700891,1781063463000,-5245.7990461,0.00019,2]
[424700893,1781063463000,-479905.45290783,0.00019,2]
[424700902,1781063463000,-250.0,0.000191,2]
[424700898,1781063463000,-250.0,0.000191,2]
[424700896,1781063463000,-632.0,0.0001905,2]
[424700899,1781063463000,-200.0,0.000191,2]
[424700900,1781063463000,-208.969,0.000191,2]
[424700901,1781063463000,-220.0,0.000191,2]
[424700903,1781063463000,-247.969,0.000191,2]
[424700904,1781063463000,-250.0,0.000191,2]
[424700889,1781063463000,-300.0,0.00018999,2]
[424700905,1781063463000,-242.103,0.000191,2]
[424700908,1781063463000,-195.316,0.000191,2]
[424700913,1781063463000,-3737.18277314,0.000191,2]
[424700909,1781063463000,-250.0,0.000191,2]
[424700910,1781063463000,-167.528,0.000191,2]
[424700907,1781063463000,-250.0,0.000191,2]
[424700911,1781063463000,-247.654,0.000191,2]
[424700915,1781063463000,-1905.11065096,0.000191,2]
[424700914,1781063463000,-9934.10276638,0.000191,2]
[424700912,1781063463000,-189.0,0.000191,2]
[424700864,1781063463000,-1000.0,0.00018958,2]
[424700906,1781063463000,-167.63,0.000191,2]
[424700892,1781063463000,-1221.04306584,0.00019,2]
[424700897,1781063463000,-278.0,0.000191,2]
[424700888,1781063463000,-300.0,0.00018999,2]
[424700890,1781063463000,-300.0,0.00018999,2]
[424700916,1781063463000,-1865.36488656,0.00019128,2]
[424700874,1781063463000,-1000.0,0.00018958,2]
[424700869,1781063463000,-1000.0,0.00018958,2]
[424700868,1781063463000,-1000.0,0.00018958,2]
[424700875,1781063463000,-1000.0,0.00018958,2]
[424700876,1781063463000,-1000.0,0.00018958,2]
[424700873,1781063463000,-1000.0,0.00018958,2]
[424700871,1781063463000,-1000.0,0.00018958,2]
[424700872,1781063463000,-1000.0,0.00018958,2]
[424700877,1781063463000,-1000.0,0.00018958,2]
[424700878,1781063463000,-1000.0,0.00018958,2]
[424700870,1781063463000,-1000.0,0.00018958,2]
[424700880,1781063463000,-1000.0,0.00018958,2]
[424700886,1781063463000,-300.0,0.00018999,2]
[424700895,1781063463000,-2000.0,0.00019,2]
[424700887,1781063463000,-300.0,0.00018999,2]
[424700882,1781063463000,-1000.0,0.00018958,2]
[424700881,1781063463000,-1000.0,0.00018958,2]
[424700894,1781063463000,-7030.49057572,0.00019,2]
[424700883,1781063463000,-1000.0,0.00018958,2]
[424700884,1781063463000,-424.84,0.00018958,2]
[424700879,1781063463000,-1000.0,0.00018958,2]
[424700885,1781063463000,-300.0,0.00018999,2]
[424700956,1781063464000,-1125.0,0.00019768,2]
[424700943,1781063464000,-3737.18277314,0.000195,2]
[424700944,1781063464000,-9934.10276638,0.000195,2]
[424700945,1781063464000,-1905.11065096,0.000195,2]
[424700948,1781063464000,-441.43,0.00019507,2]
[424700949,1781063464000,-2000.0,0.000196,2]
[424700950,1781063464000,-1934.38338736,0.00019676,2]
[424700955,1781063464000,-2129.0,0.00019756,2]
[424700962,1781063464000,-252.124978,0.00019947,2]
[424700958,1781063464000,-5012.97638949,0.000199,3]
[424700953,1781063464000,-1905.11065096,0.000197,2]
[424700960,1781063464000,-184.0418703,0.000199,2]
[424700967,1781063464000,-300.0,0.00019949,2]
[424700959,1781063464000,-184.0418703,0.000199,2]
[424700952,1781063464000,-9934.10276638,0.000197,2]
[424700963,1781063464000,-300.0,0.00019949,2]
[424700961,1781063464000,-169.929416,0.00019947,2]
[424700957,1781063464000,-688.76,0.000198,2]
[424700975,1781063464000,-862.799608,0.0001995,2]
[424700966,1781063464000,-300.0,0.00019949,2]
[424700964,1781063464000,-300.0,0.00019949,2]
[424700968,1781063464000,-504789.61063019,0.0001995,15]
[424700965,1781063464000,-300.0,0.00019949,2]
[424700942,1781063464000,-557.40981201,0.000195,2]
[424700954,1781063464000,-152.0,0.0001974,4]
[424700946,1781063464000,-350.0,0.00019507,2]
[424700924,1781063464000,-266.25015699,0.00019178,2]
[424700951,1781063464000,-3737.18277314,0.000197,2]
[424700926,1781063464000,-253.626942,0.00019178,2]
[424700972,1781063464000,-151.0,0.0001995,2]
[424700925,1781063464000,-253.626942,0.00019178,2]
[424700927,1781063464000,-253.626942,0.00019178,2]
[424700917,1781063464000,-150.0,0.00019178,2]
[424700923,1781063464000,-250.0,0.00019178,2]
[424700920,1781063464000,-220.36972287,0.00019178,2]
[424700922,1781063464000,-250.0,0.00019178,2]
[424700921,1781063464000,-250.0,0.00019178,2]
[424700919,1781063464000,-150.0,0.00019178,2]
[424700928,1781063464000,-253.626942,0.00019178,2]
[424700947,1781063464000,-350.0,0.00019507,2]
[424700930,1781063464000,-239.344721,0.00019178,2]
[424700931,1781063464000,-239.344721,0.00019178,2]
[424700934,1781063464000,-477.384432,0.00019178,2]
[424700932,1781063464000,-239.344721,0.00019178,2]
[424700929,1781063464000,-239.344721,0.00019178,2]
[424700936,1781063464000,-477.384432,0.00019178,2]
[424700938,1781063464000,-9934.10276638,0.000193,2]
[424700935,1781063464000,-477.384432,0.00019178,2]
[424700939,1781063464000,-1905.11065096,0.000193,2]
[424700937,1781063464000,-3737.18277314,0.000193,2]
[424700941,1781063464000,-152.0,0.00019453,3]
[424700940,1781063464000,-4106.0,0.00019452,2]
[424700933,1781063464000,-477.384432,0.00019178,2]
[424700973,1781063464000,-862.799608,0.0001995,2]
[424700918,1781063464000,-150.0,0.00019178,2]
[424700969,1781063464000,-151.0,0.0001995,2]
[424700999,1781063464000,-151.0,0.0001995,2]
[424701004,1781063464000,-2680.313307,0.0001995,2]
[424701002,1781063464000,-2680.313307,0.0001995,2]
[424701007,1781063464000,-602.027517,0.0001995,2]
[424701005,1781063464000,-2680.313307,0.0001995,2]
[424701009,1781063464000,-602.027517,0.0001995,2]
[424701008,1781063464000,-602.027517,0.0001995,2]
[424701011,1781063464000,-556.403067,0.0001995,2]
[424701010,1781063464000,-556.403067,0.0001995,2]
[424701012,1781063464000,-151.0,0.0001995,2]
[424701013,1781063464000,-556.403067,0.0001995,2]
[424701015,1781063464000,-556.403067,0.0001995,2]
[424701016,1781063464000,-151.0,0.0001995,2]
[424701014,1781063464000,-151.0,0.0001995,2]
[424701017,1781063464000,-151.0,0.0001995,2]
[424701019,1781063464000,-500.47668198,0.0001997,2]
[424701018,1781063464000,-151.0,0.0001995,2]
[424701023,1781063464000,-300.0,0.00019999,2]
[424701022,1781063464000,-300.0,0.00019999,2]
[424701026,1781063464000,-152.0,0.0002,2]
[424701024,1781063464000,-152.0,0.0002,2]
[424701020,1781063464000,-2000.0,0.00019979,2]
[424700970,1781063464000,-151.0,0.0001995,2]
[424701021,1781063464000,-300.0,0.00019999,2]
[424701027,1781063464000,-152.0,0.0002,2]
[424701006,1781063464000,-602.027517,0.0001995,2]
[424701000,1781063464000,-151.0,0.0001995,2]
[424701025,1781063464000,-152.0,0.0002,2]
[424701001,1781063464000,-151.0,0.0001995,2]
[424701003,1781063464000,-2680.313307,0.0001995,2]
[424700974,1781063464000,-151.0,0.0001995,2]
[424700976,1781063464000,-151.0,0.0001995,2]
[424700977,1781063464000,-862.799608,0.0001995,2]
[424700980,1781063464000,-253.626942,0.0001995,2]
[424700986,1781063464000,-239.344721,0.0001995,2]
[424700981,1781063464000,-253.626942,0.0001995,2]
[424700983,1781063464000,-151.0,0.0001995,2]
[424700978,1781063464000,-862.799608,0.0001995,2]
[424700979,1781063464000,-253.626942,0.0001995,2]
[424700984,1781063464000,-151.0,0.0001995,2]
[424700985,1781063464000,-151.0,0.0001995,2]
[424700971,1781063464000,-151.0,0.0001995,2]
[424700990,1781063464000,-5259.416845,0.0001995,2]
[424700982,1781063464000,-253.626942,0.0001995,2]
[424700997,1781063464000,-477.384432,0.0001995,2]
[424700995,1781063464000,-5259.416845,0.0001995,2]
[424700993,1781063464000,-477.384432,0.0001995,2]
[424700994,1781063464000,-5259.416845,0.0001995,2]
[424700998,1781063464000,-151.0,0.0001995,2]
[424700989,1781063464000,-239.344721,0.0001995,2]
[424700988,1781063464000,-239.344721,0.0001995,2]
[424700996,1781063464000,-477.384432,0.0001995,2]
[424700991,1781063464000,-477.384432,0.0001995,2]
[424700987,1781063464000,-239.344721,0.0001995,2]
[424700992,1781063464000,-5259.416845,0.0001995,2]
[424701064,1781063465000,-200.0,0.0002,2]
[424701056,1781063465000,-1061.38030063,0.0002,2]
[424701052,1781063465000,-26842.84592401,0.0002,2]
[424701058,1781063465000,-52462.59369272,0.0002,2]
[424701059,1781063465000,-8000.0,0.0002,2]
[424701057,1781063465000,-27035.68944095,0.0002,2]